fUSD/lending_fUSD_20240923
["ID","MTS","AMOUNT","RATE_DAILY","PERIOD"]
[338935377,1727086241926,-500.0,0.00012876,2]
[338935378,1727086241938,-850.81,0.00012876,2]
[338935379,1727086241948,-850.81,0.00012876,2]
[338935380,1727086241957,-500.0,0.00012876,2]
[338935381,1727086241967,-500.0,0.00012876,2]
[338935382,1727086241976,-512.52,0.00012876,2]
[338935383,1727086241986,-512.52,0.00012876,2]
[338935384,1727086241996,-500.0,0.00012876,2]
[338935385,1727086242005,-500.0,0.00012876,2]
[338935386,1727086242015,-762.98,0.00012876,2]
[338935387,1727086242024,-1110.54,0.00012876,2]
[338935388,1727086242034,-527.07,0.00012876,2]
[338935389,1727086242043,-1110.54,0.00012876,2]
[338935390,1727086242052,-762.98,0.00012876,2]
[338935391,1727086242061,-527.07,0.00012876,2]
[338935392,1727086242071,-798.62,0.00012876,2]
[338935393,1727086242080,-798.62,0.00012876,2]
[338935394,1727086242090,-500.0,0.00012876,2]
[338935395,1727086242100,-500.0,0.00012876,2]
[338935396,1727086242110,-500.0,0.00012876,2]
[338935397,1727086242119,-500.0,0.00012876,2]
[338935398,1727086242130,-500.0,0.00012876,2]
[338935399,1727086242140,-861.12,0.00012876,2]
[338935400,1727086242150,-861.12,0.00012876,2]
[338935401,1727086242160,-837.3,0.00012876,2]
[338935403,1727086242170,-837.3,0.00012876,2]
[338935405,1727086242179,-500.0,0.00012876,2]
[338935407,1727086242189,-500.0,0.00012876,2]
[338935409,1727086242198,-755.78,0.00012876,2]
[338935411,1727086242208,-755.78,0.00012876,2]
[338935413,1727086242217,-500.0,0.00012876,2]
[338935414,1727086242227,-500.0,0.00012876,2]
[338935415,1727086242237,-524.09,0.00012876,2]
[338935416,1727086242246,-524.09,0.00012876,2]
[338935417,1727086242256,-899.91,0.00012876,2]
[338935419,1727086242265,-899.91,0.00012876,2]
[338935420,1727086242275,-500.0,0.00012876,2]
[338935421,1727086242284,-500.0,0.00012876,2]
[338935422,1727086242294,-500.0,0.00012876,2]
[338935423,1727086242304,-500.0,0.00012876,2]
[338935425,1727086242314,-500.0,0.00012876,2]
[338935426,1727086242325,-500.0,0.00012876,2]
[338935428,1727086242334,-500.0,0.00012876,2]
[338935429,1727086242344,-1098.33,0.00012876,2]
[338935430,1727086242353,-1098.33,0.00012876,2]
[338935431,1727086242363,-500.0,0.00012876,2]
[338935432,1727086242372,-500.0,0.00012876,2]
[338935433,1727086242382,-500.0,0.00012876,2]
[338935434,1727086242391,-500.0,0.00012876,2]
[338935435,1727086242401,-2127.45,0.00012876,2]
[338935436,1727086242410,-2127.45,0.00012876,2]
[338935437,1727086242420,-500.0,0.00012876,2]
[338935438,1727086242429,-366.59366919,0.00012876,2]
[338935439,1727086242439,-500.0,0.00012876,2]
[338935440,1727086242448,-500.0,0.00012876,2]
[338935441,1727086242458,-500.0,0.00012876,2]
[338935442,1727086242467,-500.0,0.00012876,2]
[338935443,1727086242476,-616.2,0.00012876,2]
[338935444,1727086242486,-616.2,0.00012876,2]
[338935446,1727086242495,-677.13,0.00012876,2]
[338935447,1727086242505,-677.13,0.00012876,2]
[338935448,1727086242514,-1219.24,0.00012876,2]
[338935449,1727086242524,-1219.24,0.00012876,2]
[338935450,1727086242533,-500.0,0.00012876,2]
[338935451,1727086242542,-500.0,0.00012876,2]
[338935452,1727086242551,-500.0,0.00012876,2]
[338935453,1727086242560,-500.0,0.00012876,2]
[338935454,1727086242569,-500.0,0.00012876,2]
[338935455,1727086242580,-500.0,0.00012876,2]
[338935456,1727086242590,-500.0,0.00012876,2]
[338935457,1727086242599,-866.04,0.00012876,2]
[338935458,1727086242609,-500.0,0.00012876,2]
[338935459,1727086242619,-866.04,0.00012876,2]
[338935460,1727086242628,-892.97,0.00012876,2]
[338935461,1727086242638,-500.0,0.00012876,2]
[338935462,1727086242647,-892.97,0.00012876,2]
[338935463,1727086242656,-500.0,0.00012876,2]
[338935464,1727086242665,-2905.77,0.00012876,2]
[338935465,1727086242675,-2905.77,0.00012876,2]
[338935466,1727086242684,-2905.77,0.00012876,2]
[338935467,1727086242693,-1864.48,0.00012876,2]
[338935468,1727086242703,-1864.48,0.00012876,2]
[338935469,1727086242712,-680.45,0.00012876,2]
[338935470,1727086242721,-680.45,0.00012876,2]
[338935471,1727086242731,-239.99257625,0.00012876,2]
[338935472,1727086242740,-500.0,0.00012876,2]
[338935473,1727086242749,-500.0,0.00012876,2]
[338935474,1727086242759,-500.0,0.00012876,2]
[338935475,1727086242768,-500.0,0.00012876,2]
[338935476,1727086242777,-500.0,0.00012876,2]
[338935477,1727086242787,-500.0,0.00012876,2]
[338935478,1727086242796,-500.0,0.00012876,2]
[338935479,1727086242805,-500.0,0.00012876,2]
[338935480,1727086242816,-1060.91,0.00012876,2]
[338935481,1727086242825,-1264.79,0.00012876,2]
[338935482,1727086242835,-1264.79,0.00012876,2]
[338935483,1727086242845,-1060.91,0.00012876,2]
[338935484,1727086242855,-500.0,0.00012876,2]
[338935485,1727086242865,-500.0,0.00012876,2]
[338935486,1727086242875,-1720.62,0.00012876,2]
[338935487,1727086242884,-1720.62,0.00012876,2]
[338935488,1727086242894,-567.76515135,0.00012876,2]
[338935490,1727086242903,-500.0,0.00012876,2]
[338935492,1727086242913,-1102.43,0.00012876,2]
[338935493,1727086242922,-1604.63,0.00012876,2]
[338935494,1727086242932,-659.45,0.00012876,2]
[338935496,1727086242947,-659.45,0.00012876,2]
[338935497,1727086242957,-611.33,0.00012876,2]
[338935498,1727086243150,-611.33,0.00012876,2]
[338935499,1727086243187,-522.56,0.00012876,2]
[338935500,1727086243196,-522.56,0.00012876,2]
[338935501,1727086243205,-500.0,0.00012876,2]
[338935502,1727086243215,-500.0,0.00012876,2]
[338935503,1727086243224,-500.0,0.00012876,2]
[338935504,1727086243234,-500.0,0.00012876,2]
[338935505,1727086243243,-825.45,0.00012876,2]
[338935506,1727086243252,-2170.76,0.00012876,2]
[338935507,1727086243261,-500.0,0.00012876,2]
[338935508,1727086243271,-2170.76,0.00012876,2]
[338935509,1727086243280,-500.0,0.00012876,2]
[338935510,1727086243290,-500.0,0.00012876,2]
[338935511,1727086243299,-500.0,0.00012876,2]
[338935512,1727086243309,-504.13,0.00012876,2]
[338935513,1727086243318,-504.13,0.00012876,2]
[338935514,1727086243327,-500.0,0.00012876,2]
[338935515,1727086243337,-500.0,0.00012876,2]
[338935516,1727086243346,-1280.82,0.00012876,2]
[338935517,1727086243356,-1280.82,0.00012876,2]
[338935518,1727086243365,-500.0,0.00012876,2]
[338935519,1727086243375,-1251.52,0.00012876,2]
[338935520,1727086243384,-500.0,0.00012876,2]
[338935521,1727086243394,-189.8752126,0.00012876,2]
[338935522,1727086243403,-3888.36,0.00012876,2]
[338935523,1727086243414,-500.0,0.00012876,2]
[338935524,1727086243423,-500.0,0.00012876,2]
[338935525,1727086243433,-500.0,0.00012876,2]
[338935526,1727086243442,-500.0,0.00012876,2]
[338935527,1727086243452,-500.0,0.00012876,2]
[338935528,1727086243461,-1418.76,0.00012876,2]
[338935529,1727086243471,-1418.76,0.00012876,2]
[338935530,1727086243480,-749.24,0.00012876,2]
[338935531,1727086243489,-749.24,0.00012876,2]
[338935532,1727086243499,-1467.17,0.00012876,2]
[338935533,1727086243508,-1467.17,0.00012876,2]
[338935534,1727086243518,-500.0,0.00012876,2]
[338935535,1727086243527,-268.98215328,0.00012876,2]
[338935536,1727086243537,-707.35,0.00012876,2]
[338935537,1727086243546,-707.35,0.00012876,2]
[338935538,1727086243555,-500.0,0.00012876,2]
[338935539,1727086243564,-500.0,0.00012876,2]
[338935540,1727086243574,-500.0,0.00012876,2]
[338935541,1727086243583,-500.0,0.00012876,2]
[338935542,1727086243593,-905.21,0.00012876,2]
[338935543,1727086243602,-905.21,0.00012876,2]
[338935544,1727086243613,-905.21,0.00012876,2]
[338935545,1727086243622,-649.42,0.00012876,2]
[338935546,1727086243632,-649.42,0.00012876,2]
[338935547,1727086243641,-500.0,0.00012876,2]
[338935548,1727086243651,-500.0,0.00012876,2]
[338935549,1727086243660,-441.39273101,0.00012876,2]
[338935550,1727086243670,-500.0,0.00012876,2]
[338935551,1727086243680,-500.0,0.00012876,2]
[338935552,1727086243690,-729.58,0.00012876,2]
[338935553,1727086243699,-500.0,0.00012876,2]
[338935554,1727086243709,-729.58,0.00012876,2]
[338935555,1727086243719,-500.0,0.00012876,2]
[338935556,1727086243729,-500.0,0.00012876,2]
[338935557,1727086243738,-500.0,0.00012876,2]
[338935558,1727086243747,-500.0,0.00012876,2]
[338935559,1727086243757,-1043.34,0.00012876,2]
[338935560,1727086243767,-1725.28,0.00012876,2]
[338935561,1727086243776,-500.0,0.00012876,2]
[338935562,1727086243786,-1043.34,0.00012876,2]
[338935563,1727086243796,-1725.28,0.00012876,2]
[338935564,1727086243805,-646.88,0.00012876,2]
[338935565,1727086243815,-646.88,0.00012876,2]
[338935566,1727086243824,-500.0,0.00012876,2]
[338935567,1727086243834,-500.0,0.00012876,2]
[338935568,1727086243843,-500.0,0.00012876,2]
[338935569,1727086243853,-500.0,0.00012876,2]
[338935570,1727086243862,-500.0,0.00012876,2]
[338935571,1727086243872,-500.0,0.00012876,2]
[338935572,1727086243881,-500.0,0.00012876,2]
[338935573,1727086243891,-436.52683874,0.00012876,2]
[338935574,1727086243900,-502.0006042,0.00012876,2]
[338935575,1727086243910,-1573.66,0.00012876,2]
[338935576,1727086243920,-1573.66,0.00012876,2]
[338935577,1727086243930,-500.0,0.00012876,2]
[338935578,1727086243943,-951.71,0.00012876,2]
[338935579,1727086243953,-500.0,0.00012876,2]
[338935580,1727086243962,-951.71,0.00012876,2]
[338935581,1727086243971,-500.0,0.00012876,2]
[338935582,1727086243981,-500.0,0.00012876,2]
[338935583,1727086243991,-500.0,0.00012876,2]
[338935584,1727086244000,-500.0,0.00012876,2]
[338935585,1727086244011,-661.09,0.00012876,2]
[338935586,1727086244021,-661.09,0.00012876,2]
[338935587,1727086244031,-1178.66,0.00012876,2]
[338935588,1727086244041,-661.09,0.00012876,2]
[338935589,1727086244051,-1178.66,0.00012876,2]
[338935590,1727086244061,-157.66914084,0.00012876,2]
[338935591,1727086244070,-500.0,0.00012876,2]
[338935592,1727086244081,-500.0,0.00012876,2]
[338935593,1727086244090,-526.49717487,0.00012876,2]
[338935594,1727086244100,-644.58,0.00012876,2]
[338935595,1727086244109,-644.58,0.00012876,2]
[338935596,1727086244119,-901.72,0.00012876,2]
[338935597,1727086244128,-968.35,0.00012876,2]
[338935598,1727086244137,-901.72,0.00012876,2]
[338935599,1727086244147,-968.35,0.00012876,2]
[338935600,1727086244156,-500.0,0.00012876,2]
[338935601,1727086244165,-543.73165578,0.00012876,2]
[338935602,1727086244174,-609.13,0.00012876,2]
[338935603,1727086244183,-500.0,0.00012876,2]
[338935604,1727086244193,-609.13,0.00012876,2]
[338935605,1727086244202,-500.0,0.00012876,2]
[338935606,1727086244211,-500.0,0.00012876,2]
[338935607,1727086244221,-153.9560922,0.00012876,2]
[338935608,1727086244231,-557.39015297,0.00012876,2]
[338935609,1727086244241,-500.0,0.00012876,2]
[338935610,1727086244250,-500.0,0.00012876,2]
[338935611,1727086244259,-500.0,0.00012876,2]
[338935612,1727086244269,-500.0,0.00012876,2]
[338935613,1727086244278,-500.0,0.00012876,2]
[338935614,1727086244287,-500.0,0.00012876,2]
[338935615,1727086244297,-587.2201883,0.00012876,2]
[338935616,1727086244306,-714.45,0.00012876,2]
[338935617,1727086244315,-500.0,0.00012876,2]
[338935618,1727086244325,-714.45,0.00012876,2]
[338935619,1727086244334,-500.0,0.00012876,2]
[338935620,1727086244344,-500.0,0.00012876,2]
[338935621,1727086244353,-500.0,0.00012876,2]
[338935622,1727086244362,-571.62663593,0.00012876,2]
[338935623,1727086244372,-973.04,0.00012876,2]
[338935624,1727086244381,-973.04,0.00012876,2]
[338935625,1727086244390,-500.0,0.00012876,2]
[338935626,1727086244400,-500.0,0.00012876,2]
[338935627,1727086244409,-500.0,0.00012876,2]
[338935628,1727086244418,-500.0,0.00012876,2]
[338935629,1727086244427,-500.0,0.00012876,2]
[338935630,1727086244437,-500.0,0.00012876,2]
[338935631,1727086244446,-500.0,0.00012876,2]
[338935632,1727086244455,-500.0,0.00012876,2]
[338935633,1727086244464,-500.0,0.00012876,2]
[338935634,1727086244473,-500.0,0.00012876,2]
[338935635,1727086244482,-500.0,0.00012876,2]
[338935636,1727086244492,-500.0,0.00012876,2]
[338935637,1727086244501,-500.0,0.00012876,2]
[338935638,1727086244510,-500.0,0.00012876,2]
[338935639,1727086244520,-500.0,0.00012876,2]
[338935640,1727086244529,-1263.87,0.00012876,2]
[338935641,1727086244538,-1263.87,0.00012876,2]
[338935642,1727086244551,-500.0,0.00012876,2]
[338935643,1727086244571,-500.0,0.00012876,2]
[338935644,1727086244593,-500.0,0.00012876,2]
[338935645,1727086244603,-500.0,0.00012876,2]
[338935646,1727086244612,-656.11,0.00012876,2]
[338935647,1727086244622,-656.11,0.00012876,2]
[338935648,1727086244632,-1648.23,0.00012876,2]
[338935649,1727086244641,-1648.23,0.00012876,2]
[338935650,1727086244651,-1060.66,0.00012876,2]
[338935651,1727086244660,-500.0,0.00012876,2]
[338935652,1727086244669,-500.0,0.00012876,2]
[338935653,1727086244678,-500.0,0.00012876,2]
[338935654,1727086244688,-500.0,0.00012876,2]
[338935655,1727086244698,-500.0,0.00012876,2]
[338935656,1727086244707,-500.0,0.00012876,2]
[338935657,1727086244717,-500.0,0.00012876,2]
[338935658,1727086244726,-500.0,0.00012876,2]
[338935659,1727086244736,-284.13273992,0.00012876,2]
[338935660,1727086244746,-500.0,0.00012876,2]
[338935661,1727086244755,-500.0,0.00012876,2]
[338935662,1727086244767,-500.0,0.00012876,2]
[338935663,1727086244776,-500.0,0.00012876,2]
[338935664,1727086244786,-531.8,0.00012876,2]
[338935665,1727086244796,-500.0,0.00012876,2]
[338935666,1727086244805,-500.0,0.00012876,2]
[338935667,1727086244814,-500.0,0.00012876,2]
[338935668,1727086244825,-500.0,0.00012876,2]
[338935669,1727086244835,-500.0,0.00012876,2]
[338935670,1727086244844,-500.0,0.00012876,2]
[338935671,1727086244854,-548.35,0.00012876,2]
[338935672,1727086244863,-548.35,0.00012876,2]
[338935673,1727086244872,-500.0,0.00012876,2]
[338935674,1727086244881,-500.0,0.00012876,2]
[338935675,1727086244891,-500.0,0.00012876,2]
[338935676,1727086244900,-500.0,0.00012876,2]
[338935677,1727086244909,-1904.45,0.00012876,2]
[338935678,1727086244918,-1904.45,0.00012876,2]
[338935679,1727086244928,-698.79,0.00012876,2]
[338935680,1727086244941,-698.79,0.00012876,2]
[338935681,1727086244950,-500.0,0.00012876,2]
[338935682,1727086244960,-500.0,0.00012876,2]
[338935683,1727086244969,-500.0,0.00012876,2]
[338935684,1727086244979,-500.0,0.00012876,2]
[338935685,1727086244988,-500.0,0.00012876,2]
[338935686,1727086244997,-500.0,0.00012876,2]
[338935687,1727086245007,-500.0,0.00012876,2]
[338935688,1727086245019,-327.37,0.00012876,2]
[338935689,1727086245029,-1044.48,0.00012876,2]
[338935690,1727086245038,-1044.48,0.00012876,2]
[338935691,1727086245048,-500.0,0.00012876,2]
[338935692,1727086245058,-500.0,0.00012876,2]
[338935693,1727086245068,-428.7083415,0.00012876,2]
[338935694,1727086245078,-771.22,0.00012876,2]
[338935695,1727086245087,-771.22,0.00012876,2]
[338935696,1727086245097,-1453.37,0.00012876,2]
[338935697,1727086245107,-1453.37,0.00012876,2]
[338935698,1727086245117,-500.0,0.00012876,2]
[338935699,1727086245126,-500.0,0.00012876,2]
[338935700,1727086245135,-500.0,0.00012876,2]
[338935701,1727086245144,-500.0,0.00012876,2]
[338935702,1727086245154,-500.0,0.00012876,2]
[338935703,1727086245163,-500.0,0.00012876,2]
[338935705,1727086245173,-500.0,0.00012876,2]
[338935706,1727086245182,-500.0,0.00012876,2]
[338935707,1727086245192,-500.0,0.00012876,2]
[338935708,1727086245201,-912.905,0.0001288,2]
[338935709,1727086245210,-150.0,0.0001288,2]
[338935710,1727086245219,-5867.0,0.0001288,2]
[338935711,1727086245228,-13490.0,0.0001288,2]
[338935712,1727086245237,-1081.0,0.0001288,2]
[338935713,1727086245247,-1854.0164,0.00012892,2]
[338935714,1727086245256,-161.66,0.00012893,2]
[338935715,1727086245265,-223.91,0.00012896,2]
[338935716,1727086245274,-156.60346132,0.00012896,2]
[338935717,1727086245283,-157.1,0.00012896,2]
[338935718,1727086245293,-516.27972174,0.00012897,2]
[338935719,1727086245302,-151.84654476,0.000129,2]
[338935720,1727086245312,-162.787,0.00012913,2]
[338935721,1727086245321,-500.0,0.00012973,2]
[338935722,1727086245332,-164.51933487,0.00012973,2]
[338935723,1727086245341,-500.0,0.00012973,2]
[338935724,1727086245351,-369.82641884,0.00012973,2]
[338935725,1727086245360,-1262.0,0.0001298,2]
[338935726,1727086245370,-1549.0,0.0001298,2]
[338935727,1727086245380,-448.0,0.0001298,2]
[338935728,1727086245389,-1165.11,0.00012986,2]
[338935729,1727086245399,-500.0,0.00012986,2]
[338935730,1727086245408,-1769.21,0.00012986,2]
[338935731,1727086245417,-616.2,0.00012986,2]
[338935732,1727086245426,-1864.48,0.00012986,2]
[338935733,1727086245436,-500.0,0.00012986,2]
[338935734,1727086245445,-500.0,0.00012986,2]
[338935735,1727086245454,-500.0,0.00012986,2]
[338935736,1727086245464,-500.0,0.00012986,2]
[338935737,1727086245473,-500.0,0.00012986,2]
[338935738,1727086245482,-1263.87,0.00012986,2]
[338935739,1727086245553,-500.0,0.00012986,2]
[338935740,1727086245562,-500.0,0.00012986,2]
[338935741,1727086245571,-548.35,0.00012986,2]
[338935742,1727086245581,-771.22,0.00012986,2]
[338935743,1727086245591,-500.0,0.00012986,2]
[338935744,1727086245600,-16685.64555681,0.00012986,2]
[338935745,1727086245609,-29175.0,0.00012986,2]
[338935746,1727086245618,-500.0,0.00012989,2]
[338935747,1727086245627,-500.0,0.00012989,2]
[338935748,1727086245637,-500.0,0.00012989,2]
[338935749,1727086245646,-1102.43,0.00012989,2]
[338935750,1727086245656,-1604.63,0.00012989,2]
[338935751,1727086245666,-825.45,0.00012989,2]
[338935752,1727086245675,-1251.52,0.00012989,2]
[338935753,1727086245685,-3888.36,0.00012989,2]
[338935754,1727086245694,-500.0,0.00012989,2]
[338935755,1727086245703,-500.0,0.00012989,2]
[338935756,1727086245712,-500.0,0.00012989,2]
[338935757,1727086245721,-500.0,0.00012989,2]
[338935758,1727086245730,-637.49888971,0.00012989,2]
[338935759,1727086245740,-500.0,0.00012989,2]
[338935760,1727086245749,-500.0,0.00012989,2]
[338935761,1727086245759,-1060.66,0.00012989,2]
[338935762,1727086245768,-500.0,0.00012989,2]
[338935763,1727086245777,-500.0,0.00012989,2]
[338935764,1727086245787,-500.0,0.00012989,2]
[338935765,1727086245796,-177.53547603,0.00012989,2]
[338935766,1727086245805,-500.0,0.0001299,2]
[338935767,1727086245815,-500.0,0.0001299,2]
[338935768,1727086245824,-500.0,0.0001299,2]
[338935769,1727086245834,-500.0,0.0001299,2]
[338935770,1727086245843,-500.0,0.0001299,2]
[338935772,1727086245853,-500.0,0.0001299,2]
[338935774,1727086245863,-500.0,0.0001299,2]
[338935776,1727086245872,-500.0,0.0001299,2]
[338935778,1727086245881,-500.0,0.0001299,2]
[338935780,1727086245890,-500.0,0.0001299,2]
[338935782,1727086245899,-500.0,0.0001299,2]
[338935783,1727086245907,-500.0,0.0001299,2]
[338935784,1727086245916,-306.92067774,0.0001299,2]
[338935785,1727086245924,-500.0,0.0001299,2]
[338935786,1727086245934,-500.0,0.0001299,2]
[338935787,1727086245947,-500.0,0.0001299,2]
[338935788,1727086245956,-500.0,0.0001299,2]
[338935789,1727086245965,-500.0,0.0001299,2]
[338935790,1727086245974,-500.0,0.0001299,2]
[338935791,1727086245984,-538.0,0.0001299,2]
[338935792,1727086245994,-500.0,0.0001299,2]
[338935793,1727086246003,-500.0,0.0001299,2]
[338935794,1727086246014,-285.29181211,0.0001299,2]
[338935795,1727086246023,-500.0,0.0001299,2]
[338935796,1727086246033,-500.0,0.0001299,2]
[338935797,1727086246042,-500.0,0.0001299,2]
[338935798,1727086246051,-850.88,0.0001299,2]
[338935799,1727086246060,-591.78,0.0001299,2]
[338935800,1727086246069,-500.0,0.0001299,2]
[338935801,1727086246079,-1159.44,0.0001299,2]
[338935802,1727086246089,-500.0,0.0001299,2]
[338935803,1727086246098,-671.94,0.0001299,2]
[338935804,1727086246108,-500.0,0.0001299,2]
[338935805,1727086246117,-500.0,0.0001299,2]
[338935806,1727086246127,-500.0,0.0001299,2]
[338935807,1727086246136,-500.0,0.0001299,2]
[338935808,1727086246146,-1013.3,0.0001299,2]
[338935809,1727086246155,-500.0,0.0001299,2]
[338935810,1727086246165,-500.0,0.0001299,2]
[338935811,1727086246174,-500.0,0.0001299,2]
[338935812,1727086246182,-242.27790132,0.0001299,2]
[338935813,1727086246191,-594.99,0.0001299,2]
[338935814,1727086246201,-500.0,0.0001299,2]
[338935815,1727086246210,-500.0,0.0001299,2]
[338935816,1727086246219,-500.0,0.0001299,2]
[338935817,1727086246228,-500.0,0.0001299,2]
[338935818,1727086246237,-503.31,0.0001299,2]
[338935819,1727086246246,-500.0,0.0001299,2]
[338935820,1727086246255,-500.0,0.0001299,2]
[338935821,1727086246264,-1637.99,0.0001299,2]
[338935822,1727086246274,-500.0,0.0001299,2]
[338935823,1727086246283,-1079.76,0.0001299,2]
[338935824,1727086246292,-787.54,0.0001299,2]
[338935825,1727086246301,-500.0,0.0001299,2]
[338935826,1727086246311,-500.0,0.0001299,2]
[338935827,1727086246321,-913.49,0.0001299,2]
[338935828,1727086246330,-739.33,0.0001299,2]
[338935829,1727086246339,-500.0,0.0001299,2]
[338935830,1727086246348,-500.0,0.0001299,2]
[338935831,1727086246357,-500.0,0.0001299,2]
[338935832,1727086246367,-500.0,0.0001299,2]
[338935833,1727086246376,-1099.32,0.0001299,2]
[338935834,1727086246385,-500.0,0.0001299,2]
[338935835,1727086246394,-1070.65,0.0001299,2]
[338935836,1727086246403,-500.0,0.0001299,2]
[338935837,1727086246412,-500.0,0.0001299,2]
[338935838,1727086246421,-512.75,0.0001299,2]
[338935839,1727086246430,-500.0,0.0001299,2]
[338935840,1727086246440,-1286.08,0.0001299,2]
[338935841,1727086246449,-849.26,0.0001299,2]
[338935842,1727086246458,-500.0,0.0001299,2]
[338935843,1727086246467,-500.0,0.0001299,2]
[338935844,1727086246476,-500.0,0.0001299,2]
[338935845,1727086246485,-500.0,0.0001299,2]
[338935846,1727086246494,-797.79,0.0001299,2]
[338935847,1727086246503,-660.03,0.0001299,2]
[338935848,1727086246512,-500.0,0.0001299,2]
[338935849,1727086246522,-500.0,0.0001299,2]
[338935850,1727086246531,-597.14,0.0001299,2]
[338935851,1727086246540,-500.0,0.0001299,2]
[338935852,1727086246549,-500.0,0.0001299,2]
[338935853,1727086246558,-619.89,0.0001299,2]
[338935854,1727086246568,-1105.02,0.0001299,2]
[338935855,1727086246578,-715.08,0.0001299,2]
[338935856,1727086246588,-922.21,0.0001299,2]
[338935857,1727086246597,-500.0,0.0001299,2]
[338935858,1727086246607,-527.24,0.0001299,2]
[338935859,1727086246617,-997.48,0.0001299,2]
[338935860,1727086246627,-500.0,0.0001299,2]
[338935861,1727086246636,-500.0,0.0001299,2]
[338935862,1727086246646,-500.0,0.0001299,2]
[338935863,1727086246655,-904.87,0.0001299,2]
[338935864,1727086246665,-500.0,0.0001299,2]
[338935865,1727086246674,-500.0,0.0001299,2]
[338935866,1727086246683,-500.0,0.0001299,2]
[338935867,1727086246692,-560.55,0.0001299,2]
[338935868,1727086246701,-692.55,0.0001299,2]
[338935869,1727086246711,-500.0,0.0001299,2]
[338935870,1727086246720,-500.0,0.0001299,2]
[338935871,1727086246730,-1377.44,0.0001299,2]
[338935872,1727086246739,-500.0,0.0001299,2]
[338935873,1727086246748,-964.75,0.0001299,2]
[338935874,1727086246758,-500.0,0.0001299,2]
[338935875,1727086246767,-500.0,0.0001299,2]
[338935876,1727086246778,-500.0,0.0001299,2]
[338935877,1727086246788,-500.0,0.0001299,2]
[338935878,1727086246797,-939.06,0.0001299,2]
[338935879,1727086246807,-1616.43,0.0001299,2]
[338935880,1727086246816,-500.0,0.0001299,2]
[338935881,1727086246827,-500.0,0.0001299,2]
[338935882,1727086246836,-500.64377453,0.0001299,2]
[338935883,1727086246845,-500.0,0.0001299,2]
[338935884,1727086246854,-500.0,0.0001299,2]
[338935885,1727086246864,-500.0,0.0001299,2]
[338935886,1727086246873,-500.0,0.0001299,2]
[338935887,1727086246882,-500.0,0.0001299,2]
[338935888,1727086246891,-500.0,0.0001299,2]
[338935889,1727086246901,-961.86,0.0001299,2]
[338935890,1727086246910,-786.76,0.0001299,2]
[338935891,1727086246919,-500.0,0.0001299,2]
[338935892,1727086246929,-500.0,0.0001299,2]
[338935893,1727086246940,-500.0,0.0001299,2]
[338935894,1727086246951,-823.01,0.0001299,2]
[338935895,1727086246960,-1294.14,0.0001299,2]
[338935896,1727086246970,-530.70787889,0.0001299,2]